Cogmind - Beta 16 @@@ ROGUE MODE // 2025.12.21 @ 23:30:35 Player: sercli123 Result: Destroyed by P-70 Sage with High-powered Shock Rifle Performance ------------- Evolutions (6) 3000 Regions Visited (13) 2600 Robots Destroyed (187) 935 Value Destroyed (7162) 7162 Prototype IDs (13) 260 Alien Tech Used (0) 0 Bonus (1970) 1970 TOTAL SCORE: 15927 Bonus ------- High Alert Combat Kills 971 Follower Combat Kills 1052 Friendly Fire -53 Cogmind --------- Core Integrity 0/1150 Matter 193/300 Energy 100/100 System Corruption 19% Temperature Cool (0) Movement Core (100) Ox1 Location -4/Factory Parts ------- > --- POWER (1) -------- (None) > --- PROPULSION (5) --- (None) > --- UTILITY (8) ------ (None) > --- WEAPON (5) ------- Force Lance > --- INVENTORY (5) ---- Advanced Cooling System Advanced Cloaking Device Advanced Component Analysis Suite Improved Arc Projector Enhanced Quantum Rifle Peak State ------------ > --- POWER ------------ Antimatter Reactor > --- PROPULSION ------- Improved Treads Heavy Treads Heavy Treads > --- UTILITY ---------- Improved Cryofiber Web Advanced Heat Sink Large Storage Unit Enhanced Optical Array Improved Target Analyzer Improved Weapon Cycler Hardened Medium Armor Plating Improved Medium Armor Plating > --- WEAPON ----------- Proton Burst Cannon Railgun Bore Cannon Enhanced Gauss Cannon Linear Accelerator > --- INVENTORY -------- Antimatter Reactor Thunder Leg Thunder Leg Thunder Leg Advanced Heat Sink Advanced Cooling System Matter Compressor Advanced Targeting Computer Target Analyzer Armor Integrity Analyzer Advanced Recoil Stabilizer Weapon Cycler Heavy Disruptor Cannon Matter Neutralizer [Rating: 109] Favorites ----------- Power Cooled Ion Engine Engine Cooled Ion Engine Reactor Antimatter Reactor Propulsion Compact Wheel Treads Heavy Treads Leg Aluminum Leg Wheel Compact Wheel Flight Unit Field Propulsion Drive Utility Target Analyzer Device Improved Cooling System Storage Large Storage Unit Processor Target Analyzer Hackware System Shield Protection Improved Weapon Shielding Weapon Ion Cannon Energy Gun Enhanced Force Rifle Energy Cannon Ion Cannon Ballistic Gun High-powered Shotgun Ballistic Cannon Linear Accelerator Impact Weapon Heavy Mace Piercing Weapon Force Lance Build | -11 -10 -9 -8 -7 -6 -5 -5 -5 -5 -5 -4 -4 -4 ------- Run | Yrd Mat Mat Mat Fac Fac Fac Was Fac Ext Cet Fac Was Fac Slots Evolved 12 | . . 2 2 2 2 2 . . . . 2 . . Power . | . . . . . . . . . . . . . . Propulsion 3 | . . 1 . . . 1 . . . . 1 . . Utility 6 | . . 1 2 1 1 . . . . . 1 . . Weapon 3 | . . . . 1 1 1 . . . . . . . Parts Attached 124 | 6 5 15 17 16 8 14 6 1 10 2 21 1 2 Power 10 | 1 2 2 3 . . . 1 . . . 1 . . Engine 8 | 1 2 2 3 . . . . . . . . . . Core . | . . . . . . . . . . . . . . Reactor 2 | . . . . . . . 1 . . . 1 . . Propulsion 31 | 2 1 3 7 4 2 1 1 . 1 . 8 1 . Treads 15 | . . . 4 4 1 1 1 . 1 . 3 . . Leg 7 | 1 1 2 1 . . . . . . . 2 . . Wheel 5 | 1 . 1 2 . 1 . . . . . . . . Hover . | . . . . . . . . . . . . . . Flight 4 | . . . . . . . . . . . 3 1 . Utility 38 | 1 1 5 3 4 6 2 2 . 6 2 5 . 1 Device 13 | . . 2 . 1 2 . 2 . 4 . 2 . . Storage 5 | 1 1 . . 1 1 . . . 1 . . . . Processor 7 | . . 2 1 1 1 1 . . . . 1 . . Hackware 1 | . . . . . . . . . . . . . 1 Protection 12 | . . 1 2 1 2 1 . . 1 2 2 . . Artifact . | . . . . . . . . . . . . . . Weapon 45 | 2 1 5 4 8 . 11 2 1 3 . 7 . 1 Energy Gun 17 | 1 . 4 2 3 . 7 . . . . . . . Energy Cannon 9 | . 1 . 1 3 . 1 . . . . 3 . . Ballistic Gun 7 | 1 . 1 1 . . 1 . 1 1 . 1 . . Ballistic Cannon 10 | . . . . 2 . 2 2 . 2 . 2 . . Launcher . | . . . . . . . . . . . . . . Special Weapon . | . . . . . . . . . . . . . . Impact Weapon 1 | . . . . . . . . . . . 1 . . Slashing Weapon . | . . . . . . . . . . . . . . Piercing Weapon 1 | . . . . . . . . . . . . . 1 Special Melee Weapon . | . . . . . . . . . . . . . . Unidentified Prototypes 11 | . . 2 2 3 . 2 . 1 . . 1 . . Parts Lost 43 | . . 6 6 1 3 5 . . 1 3 15 . 3 Power 4 | . . 1 1 . . . . . . . 2 . . Propulsion 14 | . . 1 3 . . 2 . . 1 . 5 . 2 Utility 14 | . . 2 2 1 1 2 . . . 1 4 . 1 Weapon 11 | . . 2 . . 2 1 . . . 2 4 . . Highest Loss Streak 7 | . . 4 3 1 2 3 . . 1 3 7 . 3 To Critical Strikes . | . . . . . . . . . . . . . . Average Backups 10 | . 4 7 9 9 10 12 14 14 13 12 9 3 5 Power . | . 1 . . 1 1 1 1 1 1 1 . . . Propulsion 1 | . 3 1 . 1 2 . . 1 1 1 1 . . Utility 6 | . . 3 4 4 7 8 8 9 9 9 6 2 3 Weapon 2 | . . 2 3 2 . 2 3 3 2 1 1 1 2 Tool/Special . | . . . . . . . . . . . . . . Unused Backups 42 | . . 5 10 9 1 3 4 1 2 . 4 . 3 Power 4 | . . . 3 . . . 1 . . . . . . Propulsion 5 | . . 2 1 1 . . . . . . 1 . . Utility 20 | . . 3 3 4 1 3 2 . 1 . 2 . 1 Weapon 13 | . . . 3 4 . . 1 1 1 . 1 . 2 Tool/Special . | . . . . . . . . . . . . . . Average Slot Usage (%) 87 | . 84 96 97 99 98 92 85 82 81 77 63 14 17 Engine 4 | . 13 11 8 7 6 5 . . . . . . . Reactor 1 | . . . . . . . 4 5 5 5 3 . . Treads 8 | . . . 13 14 12 10 5 5 5 11 11 . . Leg 3 | . 14 21 4 . . . . . . . . . . Wheel 5 | . 13 11 7 7 5 5 5 5 4 . . . . Device 7 | . . 9 . 7 6 8 11 11 12 11 10 . . Storage 6 | . 14 11 9 7 6 5 5 5 5 5 4 . . Processor 19 | . . 9 27 23 26 23 23 23 20 17 7 . . Protection 3 | . . . 8 6 5 1 . . . 4 6 . . Energy Gun 4 | . 11 15 2 . . 9 11 10 2 . . . . Energy Cannon 6 | . 2 1 6 15 12 9 . . . . 2 . . Ballistic Gun 4 | . 13 5 9 2 . . 2 . 4 3 3 . . Ballistic Cannon 6 | . . . . 3 12 6 11 11 14 14 9 . . Peak Build Rating 109 | 6 7 19 30 41 54 79 97 97 101 101 109 26 33 Average Rating 54 | 3 5 13 27 37 47 67 92 96 97 90 74 24 28 On Entrance 45 | . 6 7 19 26 38 48 79 97 96 101 77 10 26 Avg Prop Armor Cover (%) 14 | 12 10 15 19 16 13 12 11 11 10 . 30 17 18 Naked Turns 85 | . . . . . . . . . . . 85 . . Heaviest Build 104 | 10 17 25 29 40 59 64 87 87 96 99 104 3 6 Greatest Support 163 | 16 16 16 42 20 28 56 28 28 140 140 163 22 15 Greatest Overweight (x) 3 | . 3 2 1 2 3 2 3 3 3 . 2 . 1 Average Overweight (x) 1 | . . 1 . 1 2 1 2 3 2 . . . . Largest Inventory Capacity 15 | 8 10 10 10 10 15 15 15 15 15 15 15 5 5 Average Capacity 12 | 6 9 10 10 10 13 15 15 15 15 15 12 5 5 Most Carried 15 | 2 9 10 10 10 14 15 15 15 15 13 15 5 5 Average Carried 10 | . 5 7 9 9 11 12 14 14 14 12 9 3 5 Final Capacity 15 | 8 10 10 10 10 15 15 15 15 15 15 5 5 5 Final Carried 15 | 2 9 10 9 10 13 13 15 15 13 12 2 5 5 Class Distribution -------------------- 49% | Scavenger-Gunner 25% | Mutant 7% | Scavenger-Mutant 6% | Gunner 6% | Scavenger-Tank 3% | Scientist-Gunner Dominant Class ---------------- Mutant | -10/Materials Scavenger-Mutant | -9/Materials Mutant | -8/Materials Scavenger-Gunner | -7/Factory Scavenger-Gunner | -6/Factory Scientist-Gunner | -5/Factory Scavenger-Gunner | -5/Waste Scavenger-Gunner | -5/Factory Scavenger-Gunner | -5/Extension Scavenger-Gunner | -5/Cetus Scavenger-Tank | -4/Factory Mutant | -4/Waste Mutant | -4/Factory Resources | -11 -10 -9 -8 -7 -6 -5 -5 -5 -5 -5 -4 -4 -4 ----------- Run | Yrd Mat Mat Mat Fac Fac Fac Was Fac Ext Cet Fac Was Fac Matter Collected 5482 | 176 197 155 516 331 956 586 515 66 1482 . 478 . 24 Remotely . | . . . . . . . . . . . . . . Salvage Created 9241 | . 450 707 1028 825 1806 1288 1484 . 1038 58 533 . 24 Parts 388 | . 24 36 59 53 73 54 13 1 48 4 22 . 1 Haulers Intercepted 10 | . 1 1 2 2 1 2 . . 1 . . . . Recyclers Shooed 9 | . 2 3 . . 2 1 . . 1 . . . . Parts Field Recycled . | . . . . . . . . . . . . . . Retrieved Matter . | . . . . . . . . . . . . . . Parts Self-Destructed . | . . . . . . . . . . . . . . Prevented . | . . . . . . . . . . . . . . Parts Restored . | . . . . . . . . . . . . . . Kills | -11 -10 -9 -8 -7 -6 -5 -5 -5 -5 -5 -4 -4 -4 ------- Run | Yrd Mat Mat Mat Fac Fac Fac Was Fac Ext Cet Fac Was Fac Combat Hostiles Destroyed 137 | . 7 10 22 19 25 16 6 . 20 1 10 . 1 Melee 1 | . . . . . . . . . . . . . 1 Guns 51 | . 5 9 17 2 . 7 5 . 3 . 3 . . Cannons 76 | . 2 . 4 15 21 9 1 . 17 1 6 . . AOE 3 | . . . . 2 1 . . . . . . . . Classes Destroyed 19 | . 4 5 4 4 . . 1 . 1 . . . . Worker 5 | . . . 1 . 2 . . . 2 . . . . Builder 12 | . . . 3 . 3 3 . . 3 . . . . Tunneler 1 | . . 1 . . . . . . . . . . . Hauler 10 | . 1 1 2 2 1 2 . . 1 . . . . Recycler 12 | . 3 1 1 . 3 2 . . 2 . . . . Mechanic 2 | . . 1 . . . . . . 1 . . . . Operator 2 | . . . . 2 . . . . . . . . . Watcher 5 | . . 1 1 . . 1 . 1 . 1 . . . Swarmer 26 | . 3 . 5 3 3 4 . . 3 . 4 . 1 Cutter 2 | . . . . 2 . . . . . . . . . Grunt 59 | . 4 5 11 8 14 6 . . 9 . 2 . . Brawler 2 | . . . 1 . . . . . 1 . . . . Duelist 1 | . . 1 . . . . . . . . . . . Sentry 17 | . . 4 4 1 3 . . . 3 . 2 . . Hunter 12 | . . . 1 2 4 2 . . 2 . 1 . . Programmer 7 | . . . . 2 1 4 . . . . . . . Heavy 1 | . . . . 1 . . . . . . . . . Behemoth 3 | . . . . . . . . . 2 . 1 . . Compactor 6 | . . . . . . . 6 . . . . . . Cetus Guard 1 | . . . . . . . . . . 1 . . . Surgeon 1 | . . . . . . . . . 1 . . . . Best Kill Streak 9 | . 7 6 4 3 5 7 2 1 9 1 7 . 1 Combat Bots Only 7 | . 3 5 4 3 5 4 2 . 6 1 7 . 1 Max Kills in Single Turn 3 | . 1 1 2 3 3 2 1 1 2 1 1 . 1 Gunslinging . | . . . . . . . . . . . . . . Exploded 2 | . . . . 2 1 . . . . . . . . Melee 1 | . . . . . . . . . . . . . 1 Uniques/NPCs Destroyed . | . . . . . . . . . . . . . . Combat | -11 -10 -9 -8 -7 -6 -5 -5 -5 -5 -5 -4 -4 -4 -------- Run | Yrd Mat Mat Mat Fac Fac Fac Was Fac Ext Cet Fac Was Fac Hostile Shots Fired 1002 | . 35 81 123 65 130 77 . 4 134 39 257 . 57 Missed 322 | . 9 33 22 29 35 24 . 2 42 16 90 . 20 Hits 680 | . 26 48 101 36 95 53 . 2 92 23 167 . 37 Melee 11 | . . 7 . 4 . . . . . . . . . Projectile 669 | . 26 41 101 32 95 53 . 2 92 23 167 . 37 AOE 4 | . . . . 3 . . . . . . 1 . . Critical Strikes 27 | . . 1 3 3 2 1 . . 2 3 12 . . Actively Blocked 2 | . . . . 2 . . . . . . . . . Damage Taken 11754 | . 291 882 1290 732 1383 996 68 67 1735 624 3115 . 571 Core 2078 | . 37 133 189 92 180 79 . . 111 103 747 . 407 Absorbed by Shields . | . . . . . . . . . . . . . . Redirected to Shielding 676 | . . . 206 203 60 103 . . 22 82 . . . Ignored by Resistances 38 | . . . . . 38 . . . . . . . . Regen/Repaired (Parts) 835 | . . . 169 . . . 176 . 490 . . . . Core Remaining (%) 78 | 100 85 66 65 86 78 . . . . 70 . . . Volleys Fired 418 | . 43 51 77 45 58 39 25 3 46 4 27 . . Largest 5 | . 2 2 2 3 4 5 5 4 4 4 5 . . Hottest 317 | . 80 110 86 200 217 317 293 286 238 204 298 . . Shots Fired 1253 | . 86 96 147 118 214 162 123 12 181 16 98 . . Gun 490 | . 82 96 88 5 . 58 73 6 55 3 24 . . Cannon 763 | . 4 . 59 113 214 104 50 6 126 13 74 . . Launcher . | . . . . . . . . . . . . . . Special . | . . . . . . . . . . . . . . Kinetic 667 | . 43 20 74 26 114 56 75 6 172 16 65 . . Thermal 521 | . 43 37 73 92 100 91 48 6 9 . 22 . . Explosive . | . . . . . . . . . . . . . . Electromagnetic 65 | . . 39 . . . 15 . . . . 11 . . Robot Hit Streak 20 | . 11 13 20 10 14 8 12 5 10 12 10 . . Robot Miss Streak 6 | . 4 4 4 4 3 5 6 2 5 2 6 . . Penetration Max 2 | . . . . . 1 . . . 1 1 2 . . Secondary Targets 3 | . 1 2 . . . . . . . . . . . Max Gunslinging Chain 1 | . 1 1 . . . . . . . . . . . Shots Hit Robots 774 | . 53 75 100 66 123 100 82 5 101 12 56 . 1 Core Hits 370 | . 20 51 51 36 57 59 20 1 43 6 25 . 1 Critical Kills 19 | . . . 1 . 2 4 5 . 2 . 5 . . Critical Parts Destroyed 19 | . . . 5 . . 2 1 1 3 2 5 . . Critical Strikes 83 | . . 1 6 3 9 13 16 1 17 5 12 . . Burn 4 | . . 1 . . . 3 . . . . . . . Meltdown 4 | . . . 1 . 2 . . . . . 1 . . Destroy 44 | . . . 5 . . 6 16 1 5 2 9 . . Blast 29 | . . . . 3 7 3 . . 12 3 1 . . Corrupt 2 | . . . . . . 1 . . . . 1 . . Melee Attacks 7 | . . . . . . . . . . . 3 . 4 Impact 3 | . . . . . . . . . . . 3 . . Slashing . | . . . . . . . . . . . . . . Piercing 4 | . . . . . . . . . . . . . 4 Sneak Attacks . | . . . . . . . . . . . . . . Combat Hostiles . | . . . . . . . . . . . . . . Follow-up Attacks . | . . . . . . . . . . . . . . Damage Inflicted 22030 | . 555 1282 2082 1758 3759 2545 2476 209 4817 571 1941 . 35 Guns 6724 | . 484 1161 1280 55 . 924 1280 46 906 66 522 . . Cannons 14332 | . 71 . 802 1572 3103 1621 1196 163 3911 505 1388 . . Explosions 939 | . . 121 . 131 656 . . . . . 31 . . Melee 35 | . . . . . . . . . . . . . 35 Ramming . | . . . . . . . . . . . . . . Kinetic 12065 | . 206 102 1088 401 1417 858 1543 163 4699 571 1017 . . Thermal 8264 | . 349 606 994 1357 1797 1362 933 46 118 . 702 . . Explosive 545 | . . . . . 545 . . . . . . . . Electromagnetic 1121 | . . 574 . . . 325 . . . . 222 . . Impact . | . . . . . . . . . . . . . . Slashing . | . . . . . . . . . . . . . . Piercing 35 | . . . . . . . . . . . . . 35 Highest Corruption 19 | . . . . . . 2 2 2 2 2 8 19 19 Average Corruption 3 | . . . . . . 1 2 2 2 2 4 13 19 Corruption Purged . | . . . . . . . . . . . . . . Corruption Blocked . | . . . . . . . . . . . . . . Effects 52 | . . . . . . 5 10 3 19 2 4 7 2 Message Errors 11 | . . . . . . 1 2 . 6 . 2 . . Matter Fused 13 | . . . . . . 2 2 . 6 1 1 1 . Heat Flow Errors 6 | . . . . . . 1 2 . 1 . 1 1 . Energy Discharges 7 | . . . . . . 1 2 . 2 . . 1 1 Parts Rejected 1 | . . . . . . . . . . . . 1 . Data Loss (minor) 5 | . . . . . . . . 3 2 . . . . Data Loss (major) 1 | . . . . . . . . . 1 . . . . Misfires 1 | . . . . . . . . . . 1 . . . Alerts 2 | . . . . . . . 2 . . . . . . Misdirections 4 | . . . . . . . . . . . . 3 1 Weapon Failures 1 | . . . . . . . . . 1 . . . . Overload Shots . | . . . . . . . . . . . . . . Overflow Damage 631 | . . 67 19 18 151 54 . 72 238 . 12 . . Projectiles 503 | . . . 19 18 90 54 . 72 238 . 12 . . Explosions 128 | . . 67 . . 61 . . . . . . . . Melee . | . . . . . . . . . . . . . . Knockbacks 55 | . . . . 3 15 16 . . 14 1 6 . . Impact . | . . . . . . . . . . . . . . Kinetic 51 | . . . . 2 13 16 . . 13 1 6 . . Secondary 4 | . . . . 1 2 . . . 1 . . . . Self-Inflicted Damage 146 | . . 146 . . . . . . . . . . . Shots 3 | . . 3 . . . . . . . . . . . Rammed . | . . . . . . . . . . . . . . Targets Rammed . | . . . . . . . . . . . . . . Kicked . | . . . . . . . . . . . . . . Crushed . | . . . . . . . . . . . . . . Highest Temperature 493 | . 138 81 342 126 385 312 396 . 116 . 493 72 . Average Temperature 71 | . 34 21 65 29 81 91 120 . 71 . 159 40 . Received Heat Transfer 2369 | . 111 234 504 117 393 144 9 9 523 54 271 . . Effects 7 | . . . 1 . . . 2 . . . 4 . . Shutdowns 2 | . . . . . . . 1 . . . 1 . . Energy Bleed 2 | . . . 1 . . . 1 . . . . . . Interference 3 | . . . . . . . . . . . 3 . . Siege Activations . | . . . . . . . . . . . . . . Martial Activations . | . . . . . . . . . . . . . . Shielding Activations . | . . . . . . . . . . . . . . Robots Disrupted 1 | . . . . . . . . . . . 1 . . Combat Hostiles 1 | . . . . . . . . . . . 1 . . Robots Corrupted 1 | . . 1 . . . . . . . . . . . Combat Hostiles 1 | . . 1 . . . . . . . . . . . Parts Fried 9 | . . 6 . . . 2 . . . . 1 . . Impact Corruptions . | . . . . . . . . . . . . . . Robots Melted 5 | . . . 1 . 3 . . . . . 1 . . Combat Hostiles 5 | . . . 1 . 3 . . . . . 1 . . Parts Melted 20 | . . . 5 4 6 4 . . . . 1 . . Heat Transferred 13313 | . 773 976 1702 2024 2991 2442 1443 74 185 . 703 . . Parts Sabotaged . | . . . . . . . . . . . . . . Parts Stolen . | . . . . . . . . . . . . . . Parts Stripped . | . . . . . . . . . . . . . . Power Chain Reactions 4 | . . 3 . . . . . . . . 1 . . Alert | -11 -10 -9 -8 -7 -6 -5 -5 -5 -5 -5 -4 -4 -4 ------- Run | Yrd Mat Mat Mat Fac Fac Fac Was Fac Ext Cet Fac Was Fac Maximum Alert Level 3 | . . . 1 1 3 2 1 3 3 2 1 . . Low Security (%) 55 | 100 100 100 90 81 30 . 90 20 . . 29 100 100 Level 1 17 | . . . 9 18 25 27 9 5 5 . 70 . . Level 2 17 | . . . . . 31 72 . 50 38 100 . . . Level 3 9 | . . . . . 12 . . 23 56 . . . . Level 4 . | . . . . . . . . . . . . . . Level 5 . | . . . . . . . . . . . . . . High Security . | . . . . . . . . . . . . . . Max Security . | . . . . . . . . . . . . . . Peak Influence 1050 | . 90 112 213 324 819 636 221 833 1050 575 331 103 30 Initial 566 | . . 9 32 91 152 401 219 . 393 566 289 103 30 Average 271 | . 29 65 111 115 399 491 87 475 706 551 245 73 21 Influence Increases 6637 | . 182 357 675 705 1023 611 16 1093 1391 31 506 . 47 Destroy 0b10 Robot/C 3320 | . 140 200 440 380 500 320 . 420 680 20 200 . 20 Destroy 0b10 Robot/NC 280 | . 20 25 40 20 45 40 . 20 65 5 . . . Destroy Leader 680 | . 22 64 106 104 92 66 . 92 84 . 40 . 10 Allied During Kill 655 | . . . . . . . . 362 293 . . . . Successful Hack 107 | . . . 15 32 39 2 . 12 7 . . . . Disable Machine 495 | . . 30 . 120 240 30 . 15 . . 60 . . Destroy Structure 665 | . . 38 14 49 92 18 16 172 202 6 56 . 2 Partial Spotted 15 | . . . . . 15 . . . . . . . . Lose Combat Pursuer 420 | . . . 60 . . 135 . . 60 . 150 . 15 Influence Decreases 6627 | . 158 303 552 594 516 802 644 290 1182 526 728 252 80 Entered New Map 2447 | . . 15 46 110 160 418 409 . 410 446 228 192 13 Time Decay 3273 | . 158 228 446 474 326 334 235 150 422 50 350 60 40 Lost Part 427 | . . 60 60 10 30 50 . . 10 30 150 . 27 Lost Ally 330 | . . . . . . . . 140 190 . . . . Purge Threat 150 | . . . . . . . . . 150 . . . . Squads Dispatched 40 | . 1 . 3 10 7 5 . 4 5 . 3 . 2 Investigation 17 | . 1 . 2 5 4 1 . . 2 . 1 . 1 Extermination 6 | . . . . 2 1 2 . . . . 1 . . Reinforcement 13 | . . . 1 3 1 2 . 2 2 . 1 . 1 Assault 3 | . . . . . 1 . . 1 1 . . . . Garrison 1 | . . . . . . . . 1 . . . . . Intercept . | . . . . . . . . . . . . . . Searches Triggered . | . . . . . . . . . . . . . . Construction Impeded 4 | . . . . . 1 . . . 2 . 1 . . Haulers Reinforced 1 | . . . . . . 1 . . . . . . . Active Scanning Responses . | . . . . . . . . . . . . . . Cargo Convoy Interrupts . | . . . . . . . . . . . . . . Stealth | -11 -10 -9 -8 -7 -6 -5 -5 -5 -5 -5 -4 -4 -4 --------- Run | Yrd Mat Mat Mat Fac Fac Fac Was Fac Ext Cet Fac Was Fac Distress Signals 12 | . . 1 2 . 1 . . 1 4 . 2 . 1 Communications Jammed . | . . . . . . . . . . . . . . Distress Signals . | . . . . . . . . . . . . . . Times Spotted 250 | . 12 19 33 23 24 28 7 7 44 4 32 7 10 Peak Tracking Total 9 | . 5 5 7 3 6 8 2 3 9 4 9 6 9 Tactical Retreats 19 | . . . 4 . . 3 . . 4 . 6 1 1 Traps | -11 -10 -9 -8 -7 -6 -5 -5 -5 -5 -5 -4 -4 -4 ------- Run | Yrd Mat Mat Mat Fac Fac Fac Was Fac Ext Cet Fac Was Fac Traps Triggered 14 | . 3 . 1 2 . 2 . . 3 . 2 . 1 Indirectly . | . . . . . . . . . . . . . . Trap Hack Attempts . | . . . . . . . . . . . . . . Triggered . | . . . . . . . . . . . . . . Disarmed . | . . . . . . . . . . . . . . Reprogrammed . | . . . . . . . . . . . . . . Reused . | . . . . . . . . . . . . . . Traps Extracted . | . . . . . . . . . . . . . . Installed . | . . . . . . . . . . . . . . Triggered . | . . . . . . . . . . . . . . Machines | -11 -10 -9 -8 -7 -6 -5 -5 -5 -5 -5 -4 -4 -4 ---------- Run | Yrd Mat Mat Mat Fac Fac Fac Was Fac Ext Cet Fac Was Fac Machines Disabled 33 | . . 2 . 8 16 2 . 1 . . 4 . . Max in Single Turn 6 | . . 2 . 6 6 1 . . . . 1 . . Machines Repaired . | . . . . . . . . . . . . . . Machines Dismantled . | . . . . . . . . . . . . . . Machines Sabotaged . | . . . . . . . . . . . . . . Overloaded Fab Kills . | . . . . . . . . . . . . . . Hacking | -11 -10 -9 -8 -7 -6 -5 -5 -5 -5 -5 -4 -4 -4 --------- Run | Yrd Mat Mat Mat Fac Fac Fac Was Fac Ext Cet Fac Was Fac Machines Accessed 33 | . . 2 7 8 4 4 . 1 6 . 1 . . Terminals 20 | . . 2 4 6 . 2 . . 6 . . . . Fabricators 3 | . . . . 1 1 1 . . . . . . . Repair Stations 4 | . . . 1 . 2 . . 1 . . . . . Recycling Units 1 | . . . 1 . . . . . . . . . . Scanalyzers 4 | . . . 1 1 1 1 . . . . . . . Garrison Access 1 | . . . . . . . . . . . 1 . . Total Hacks 109 | . . 7 33 20 19 13 . 3 13 . 1 . . Successful 52 | . . 1 17 10 12 9 . 1 2 . . . . Failed 55 | . . 6 15 9 7 4 . 2 11 . 1 . . Catastrophic 11 | . . . . 2 2 1 . . 5 . 1 . . Database Lockouts 2 | . . . 1 1 . . . . . . . . . Manual 20 | . . 7 . 2 . 5 . . 6 . . . . Terminals 55 | . . 7 16 14 . 5 . . 13 . . . . Fabricators 10 | . . . . 4 3 3 . . . . . . . Repair Stations 16 | . . . 6 . 7 . . 3 . . . . . Recycling Units 4 | . . . 4 . . . . . . . . . . Scanalyzers 23 | . . . 7 2 9 5 . . . . . . . Garrison Access 1 | . . . . . . . . . . . 1 . . Terminal Hacks 16 | . . . 6 7 . 1 . . 2 . . . . Robot Analysis 1 | . . . 1 . . . . . . . . . . Prototype ID Bank 1 | . . . 1 . . . . . . . . . . Open Door 1 | . . . . . . . . . 1 . . . . Level Access Points 1 | . . . . 1 . . . . . . . . . Alert Level 4 | . . . 1 2 . 1 . . . . . . . Unreport Threat 1 | . . . . . . . . . 1 . . . . Locate Traps 2 | . . . 1 1 . . . . . . . . . Dispatch Records 1 | . . . . 1 . . . . . . . . . Patrol Status 1 | . . . 1 . . . . . . . . . . Investigation Status 1 | . . . . 1 . . . . . . . . . Recall Investigation 1 | . . . . 1 . . . . . . . . . Zone Layout 1 | . . . 1 . . . . . . . . . . Fabricator Hacks 8 | . . . . 2 3 3 . . . . . . . Network Status 2 | . . . . . 1 1 . . . . . . . Load Schematic 3 | . . . . 1 1 1 . . . . . . . Build 3 | . . . . 1 1 1 . . . . . . . Repair Station Hacks 7 | . . . 4 . 2 . . 1 . . . . . Scan Component 5 | . . . 2 . 2 . . 1 . . . . . Repair 2 | . . . 2 . . . . . . . . . . Recycling Unit Hacks 2 | . . . 2 . . . . . . . . . . Report Inventory 1 | . . . 1 . . . . . . . . . . Retrieve Components 1 | . . . 1 . . . . . . . . . . Scanalyzer 18 | . . . 5 1 7 5 . . . . . . . Insert Component 3 | . . . 1 . 1 1 . . . . . . . Analyze 3 | . . . 1 . 1 1 . . . . . . . Retrieve Study 12 | . . . 3 1 5 3 . . . . . . . Garrison Access Hacks . | . . . . . . . . . . . . . . Unauthorized Hacks 1 | . . 1 . . . . . . . . . . . Terminals 1 | . . 1 . . . . . . . . . . . Botnet 1 | . . 1 . . . . . . . . . . . Fabricators . | . . . . . . . . . . . . . . Repair Stations . | . . . . . . . . . . . . . . Recycling Units . | . . . . . . . . . . . . . . Scanalyzers . | . . . . . . . . . . . . . . Garrison Access . | . . . . . . . . . . . . . . Data Cores Recovered 1 | . . . . . . . . . 1 . . . . Used . | . . . . . . . . . . . . . . Hacking Detections 29 | . . 2 5 7 4 3 . 1 6 . 1 . . Full Trace Events 13 | . . 1 2 3 4 1 . . 2 . . . . Feedback Events . | . . . . . . . . . . . . . . Feedback Blocked . | . . . . . . . . . . . . . . Robot Schematics Acquired . | . . . . . . . . . . . . . . Robots Built . | . . . . . . . . . . . . . . Authchips . | . . . . . . . . . . . . . . Time . | . . . . . . . . . . . . . . Total Robot Build Rating . | . . . . . . . . . . . . . . Part Schematics Acquired 3 | . . . 1 . 1 1 . . . . . . . Parts Built 4 | . . . . 2 . 2 . . . . . . . Authchips . | . . . . . . . . . . . . . . Time 182 | . . . . 36 73 73 . . . . . . . Total Part Build Rating 12 | . . . . 6 . 6 . . . . . . . Part Studies Acquired 12 | . . . 3 1 5 3 . . . . . . . Parts Repaired 2 | . . . 2 . . . . . . . . . . Time 52 | . . . 52 . . . . . . . . . . Parts Recycled . | . . . . . . . . . . . . . . Recycled Matter . | . . . . . . . . . . . . . . Retrieved Matter . | . . . . . . . . . . . . . . Retrieved Components 7 | . . . 7 . . . . . . . . . . Parts Scanalyzed 3 | . . . 1 . 1 1 . . . . . . . Part Schematics Acquired 3 | . . . 1 . 1 1 . . . . . . . Parts Damaged . | . . . . . . . . . . . . . . Bothacking | -11 -10 -9 -8 -7 -6 -5 -5 -5 -5 -5 -4 -4 -4 ------------ Run | Yrd Mat Mat Mat Fac Fac Fac Was Fac Ext Cet Fac Was Fac Used RIF Installer . | . . . . . . . . . . . . . . Robots Hacked . | . . . . . . . . . . . . . . Non-combat . | . . . . . . . . . . . . . . Combat . | . . . . . . . . . . . . . . Robot Hacks Applied . | . . . . . . . . . . . . . . Relay Couplers Released . | . . . . . . . . . . . . . . Fabnet Peak Effective % . | . . . . . . . . . . . . . . Robots Rewired . | . . . . . . . . . . . . . . Allies Hacked . | . . . . . . . . . . . . . . Hacks Repelled . | . . . . . . . . . . . . . . Allies | -11 -10 -9 -8 -7 -6 -5 -5 -5 -5 -5 -4 -4 -4 -------- Run | Yrd Mat Mat Mat Fac Fac Fac Was Fac Ext Cet Fac Was Fac Total Allies 21 | . . . . . . . 19 . 2 . . . . Largest Group 19 | . . . . . . . 19 18 9 . . . . Highest-Rated Group 684 | . . . . . . . 684 638 367 . . . . Highest-Rated Ally 50 | . . . . . . . 50 50 50 . . . . Total Orders . | . . . . . . . . . . . . . . Ally Attacks 188 | . . . . . . . . 100 88 . . . . Total Damage 6048 | . . . . . . . . 2928 3120 . . . . Kills 44 | . . . . . . . . 26 18 . . . . Allies Corrupted 2 | . . . . . . . . 1 1 . . . . Allies Melted 1 | . . . . . . . . . 1 . . . . Intel | -11 -10 -9 -8 -7 -6 -5 -5 -5 -5 -5 -4 -4 -4 ------- Run | Yrd Mat Mat Mat Fac Fac Fac Was Fac Ext Cet Fac Was Fac Active Infowar (turns) 6984 | . . 485 1161 1315 728 750 643 340 1035 105 422 . . Optics 6984 | . . 485 1161 1315 728 750 643 340 1035 105 422 . . Robot Analysis Total 1 | . . . 1 . . . . . . . . . . Derelict Logs Recovered . | . . . . . . . . . . . . . . Drone Launches . | . . . . . . . . . . . . . . Drone Recoveries . | . . . . . . . . . . . . . . Exploration | -11 -10 -9 -8 -7 -6 -5 -5 -5 -5 -5 -4 -4 -4 ------------- Run | Yrd Mat Mat Mat Fac Fac Fac Was Fac Ext Cet Fac Was Fac Turns Passed 8134 | 50 421 570 1161 1315 730 750 643 340 1035 105 798 136 80 Spaces Moved 5088 | 38 250 293 597 859 366 397 362 207 563 54 679 288 135 Core 353 | 3 2 . . . . . . . . . 341 . 7 Treads 397 | . . . 53 1 . 1 . . 5 54 283 . . Legs 29 | . . 22 6 . . . . . . . 1 . . Wheels 3839 | 35 248 271 538 858 366 396 362 207 558 . . . . Hover . | . . . . . . . . . . . . . . Flight 470 | . . . . . . . . . . . 54 288 128 Fastest Speed 39 | 50 100 115 105 120 105 105 105 135 120 160 39 39 40 Average Speed 113 | 96 106 125 118 120 132 117 124 135 134 160 95 39 47 Slowest Speed 260 | 100 200 260 240 250 135 240 135 135 160 160 232 45 100 Overloaded Moves . | . . . . . . . . . . . . . . Propulsion Burnouts . | . . . . . . . . . . . . . . Robots Hopped . | . . . . . . . . . . . . . . Potential Cave-ins . | . . . . . . . . . . . . . . Cave-ins Triggered . | . . . . . . . . . . . . . . Exploration Rate (%) 36 | 3 47 31 63 26 15 12 93 7 61 23 17 99 7 Regions Visited 13 Branch Regions 2 Pre-discovered Areas . | . . . . . . . . . . . . . . Known Exits Taken 1 | . . . . 1 . . . . . . . . . Unknown Exits Taken 8 | 1 1 1 1 . 1 . . 1 1 1 . . . Scrap Searched . | . . . . . . . . . . . . . . Spaces Dug 7 | . . . . . . . . . . . 6 . 1 Terrain Destroyed 327 | . . 42 11 68 96 7 10 3 59 3 27 . 1 Melee 4 | . . . . . . . . . . . 3 . 1 Projectile 143 | . . . 11 10 16 7 10 3 59 3 24 . . AOE 180 | . . 42 . 58 80 . . . . . . . . Terrain Rammed . | . . . . . . . . . . . . . . Walls Destroyed . | . . . . . . . . . . . . . . Machines Disabled . | . . . . . . . . . . . . . . Actions | -11 -10 -9 -8 -7 -6 -5 -5 -5 -5 -5 -4 -4 -4 --------- Run | Yrd Mat Mat Mat Fac Fac Fac Was Fac Ext Cet Fac Was Fac Total 6561 | 51 329 404 913 1050 477 597 496 258 701 60 774 309 142 Wait 641 | . 12 13 170 84 24 108 87 46 64 . 16 17 . Move 5077 | 37 249 292 596 858 365 397 361 206 562 53 679 287 135 Hop . | . . . . . . . . . . . . . . Pick Up 141 | 8 14 19 24 17 12 19 6 1 5 . 13 3 . Fast Attach 44 | . . 2 7 11 . 2 4 . 8 . 6 2 2 Attach 79 | 6 5 11 11 5 6 14 . . 3 1 17 . . Detach 3 | . . . . . 1 1 . . 1 . . . . Swap 37 | . 2 5 5 5 3 5 2 1 4 2 3 . . Drop 114 | . 4 11 23 25 8 12 11 1 8 . 10 . 1 Fire 418 | . 43 51 77 45 58 39 25 3 46 4 27 . . Melee 7 | . . . . . . . . . . . 3 . 4 Ram . | . . . . . . . . . . . . . . Kick . | . . . . . . . . . . . . . . Crush . | . . . . . . . . . . . . . . Escape Stasis . | . . . . . . . . . . . . . . Rewire . | . . . . . . . . . . . . . . Trap . | . . . . . . . . . . . . . . Miscellaneous . | . . . . . . . . . . . . . . Route ------- -11/Scrapyard -10/Materials (discovered 2 exits: *Mat x2) -9/Materials (discovered 2 exits: *Mat / [*Min]) -8/Materials (discovered 2 exits: *Fac x2) -7/Factory (discovered 4 exits: *Fac x4) -6/Factory -5/Factory -5/Waste -5/Factory -5/Extension (discovered 2 exits: *Fac / [*Cet]) -5/Cetus -4/Factory -4/Waste -4/Factory History --------- Turn | Location | Event 9 | -11/Scrapyard | Discovered new exit (range 15) 51 | -11/Scrapyard | Entered Materials 254 | -10/Materials | Discovered new exit (range 14) 308 | -10/Materials | Build established: Mutant 433 | -10/Materials | Discovered new exit (range 4) 472 | -10/Materials | Entered another Materials area 472 | -9/Materials | Evolved 2 slots: Propulsion x1, Utility x1 769 | -9/Materials | Discovered new exit (range 9) 887 | -9/Materials | Lost 4 parts (1p1n1u1w) 985 | -9/Materials | Discovered new exit (range 8) 1042 | -9/Materials | Entered another Materials area 1042 | -8/Materials | Evolved 2 slots: Utility x2 1107 | -8/Materials | Repaired Aluminum Leg 1135 | -8/Materials | Repaired Aluminum Leg 1445 | -8/Materials | Central database locked down 1500 | -8/Materials | Discovered new exit (range 18) 1870 | -8/Materials | Lost 3 parts (1p1n1u) 2117 | -8/Materials | Discovered new exit (range 18) 2203 | -8/Materials | Entered Factory 2203 | -7/Factory | Evolved 2 slots: Utility x1, Weapon x1 2371 | -7/Factory | Central database locked down 2491 | -7/Factory | Build established: Scavenger-Gunner 3116 | -7/Factory | Identified exit to Factory 3248 | -7/Factory | Fabricated Imp. Weapon Shielding (x2) 3518 | -7/Factory | Entered another Factory area 3518 | -6/Factory | Evolved 2 slots: Utility x1, Weapon x1 4193 | -6/Factory | Discovered new exit (range 9) 4218 | -6/Factory | First assault squad dispatched 4248 | -6/Factory | Entered another Factory area 4248 | -5/Factory | Evolved 2 slots: Propulsion x1, Weapon x1 4366 | -5/Factory | Fabricated Imp. Weapon Shielding (x2) 4667 | -5/Factory | Lost 3 parts (1n2u) 4998 | -5/Factory | Sucked down chute 4998 | -5/Factory | Entered Waste 5005 | -5/Waste | Spotted C-40 Crusher 5016 | -5/Waste | Build established: Gunner 5019 | -5/Waste | Destroyed C-40 Crusher 5028 | -5/Waste | Spotted C-40 Crusher 5035 | -5/Waste | Spotted C-40 Crusher 5065 | -5/Waste | Destroyed C-40 Crusher 5093 | -5/Waste | Destroyed C-40 Crusher 5099 | -5/Waste | Spotted C-40 Crusher 5107 | -5/Waste | Spotted C-40 Crusher 5114 | -5/Waste | Destroyed C-40 Crusher 5173 | -5/Waste | Spotted C-40 Crusher 5174 | -5/Waste | Destroyed C-40 Crusher 5185 | -5/Waste | Destroyed C-40 Crusher 5388 | -5/Waste | Build established: Scavenger-Gunner 5393 | -5/Waste | Discovered new exit (range 12) 5403 | -5/Waste | Warlord forces began an assault 5641 | -5/Waste | Entered Factory 5641 | -5/Factory | Accompanied by 18 allies 5693 | -5/Factory | Garrison activated, responded to threat 5752 | -5/Factory | Lost 4 allies 5940 | -5/Factory | Discovered new exit (range 18) 5941 | -5/Factory | First assault squad dispatched 5981 | -5/Factory | Entered Extension 5981 | -5/Extension | Accompanied by 9 allies 6281 | -5/Extension | First assault squad dispatched 6472 | -5/Extension | Spotted B-75 Beast 6499 | -5/Extension | Rescued a captive Derelict 6499 | -5/Extension | Rescued a captive Derelict 6589 | -5/Extension | Destroyed B-75 Beast 6598 | -5/Extension | Spotted B-75 Beast 6617 | -5/Extension | Lost 4 allies 6694 | -5/Extension | Destroyed B-75 Beast 6972 | -5/Extension | Discovered new exit (range 22) 6972 | -5/Extension | Discovered new exit (range 22) 7006 | -5/Extension | Disrupted transfer network 7016 | -5/Extension | Entered Cetus 7039 | -5/Cetus | Spotted Cetus Guard 7039 | -5/Cetus | Spotted Cetus Guard 7039 | -5/Cetus | Spotted Cetus Guard 7039 | -5/Cetus | Spotted Cetus Guard 7065 | -5/Cetus | Destroyed Cetus Guard 7087 | -5/Cetus | Discovered new exit (range 22) 7116 | -5/Cetus | Lost 3 parts (1u2w) 7121 | -5/Cetus | Entered Factory 7121 | -4/Factory | Evolved 2 slots: Propulsion x1, Utility x1 7422 | -4/Factory | Build established: Scavenger-Tank 7539 | -4/Factory | Spotted B-86 Titan 7547 | -4/Factory | Destroyed B-86 Titan 7618 | -4/Factory | Destroyed 7 combat bots 7623 | -4/Factory | Lost 6 parts (1p1n2u2w) 7694 | -4/Factory | Released all parts (13) 7724 | -4/Factory | Lost 7 parts (1p2n2u2w) 7816 | -4/Factory | Core integrity fell below 50% 7919 | -4/Factory | Sucked down chute 7919 | -4/Factory | Entered Waste 7930 | -4/Waste | Spotted C-40 Crusher 7934 | -4/Waste | EMP discharged 7934 | -4/Waste | System corruption reached 10% 7965 | -4/Waste | Build established: Mutant 7967 | -4/Waste | Spotted C-40 Crusher 7969 | -4/Waste | Spotted C-40 Crusher 7974 | -4/Waste | Spotted C-40 Crusher 7977 | -4/Waste | Spotted C-40 Crusher 7977 | -4/Waste | Spotted C-40 Crusher 8034 | -4/Waste | EMP discharged 8036 | -4/Waste | Discovered new exit (range 12) 8055 | -4/Waste | Entered Factory 8120 | -4/Factory | Core integrity fell below 20% 8135 | -4/Factory | Destroyed by P-70 Sage with High-powered Shock Rifle Last Messages --------------- 08049_ Acquired Adv. Cloaking Device. LOCATION=UNKNOWN GOAL=ESCAPE 08071_ K-01 Serf cleans the Neutrino Reactor. 08073_ Acquired System Shield. 08075_ Dropped Hvy. Mace. 08076_ Acquired Force Lance. 08078_ ALERT: All DSF locations entering lockdown mode. 08091_ W-44 Eye sends out distress signal. 08102_ Triggered Alarm Trap. 08102_ An alarm sounds. 08102_ ALERT: Alarm triggered, dispatching investigation squad. 08110_ ALERT: Hostiles spotted, dispatching reinforcements to Terminal F013. 08112_ System corrupted: Energy discharge (-25). 08112_ Field Propulsion Drive destroyed. 08125_ System Shield destroyed. 08128_ S-27 Virus destroyed. 08132_ Field Propulsion Array destroyed. 08134_ Acquired 24 matter. Map ----- +----------------------------------------------------+ | ?????????????????????????????????????????????????? | | ?????????????????????????????????????????????????? | | ?????????????????????????????????????????????????? | | ?????????????????????????????????????????????????? | | ?????????????????????????????????????????????????? | | ?????????????????????????????????????????????????? | | ?????????????????????????????????????????????????? | | ?????????????????????????????????????????????????? | | ?????????????????????????????????????????????????? | | ?????????????????????????????????????????????????? | | ?????????????????????????????????????????????????? | | ?????????????????????????????????????????????????? | | ?????????????????????????????????????????????????? | | ???????????????????? ???????????????????????????? | | ??????????????????? ??????????????????????????? | | ??????????????????? ?????????????????????????? | | ???????????????????? ????????????????????????? | | ????????????????????? ???????????????????????? | | ????????????????????? "" #####+#########????????? | | ????????????????????? "" #????????? | | ????????????????????? F" #????????? | | ???????????????? "" #????????? | | ???????????????? #????????? | | ???????????????? ! #????????? | | ?????????????????????##########R### #????????? | | ?????????????????????#s =@ s k # #####+#### | | ?????????????????????# s p # | | ?????????????????????# s # | | ?????????????????????# # """"" | | ?????????????????????# # """"" | | ?????????????????????# # """ | | ?????????????????????# ####+#### | | ?????????????????????# ## ## """"" | | ?????????????????????# ## ## """"" | | ?????????????????????# ## ## """ | | ?????????????????????# ==## ## | | ?????????????????????# ==## ## """"" | | ?????????????????????############### ## """"" | | ???????????????????????????????????# ## """ | | ???????????????????????????????????# ## | | ???????????????????????????????????# # ! | | ???????????????????????????????????# # ! | | ???????????????????????????????????# # ! | | ???????????????????????????????????# # | | ???????????????????????????????????####### | | ?????????????????????????????????????????###+##### | | ?????????????????????????????????????????????????? | | ?????????????????????????????????????????????????? | | ?????????????????????????????????????????????????? | | ?????????????????????????????????????????????????? | +----------------------------------------------------+ Best States ------------- Heat Dissipation 98 Energy Generation 21 Energy Capacity 325 Matter Stores 537 Matter Capacity 550 Sight Range 22 Terrain Scan Density 10 Base Temperature (-) 150 Armor Coverage 450 Resistance: TH 10 Weapon Shielding 66 Weapon Cycling 20 Evasion (%) 62 Targeting Accuracy 8 Target Analysis 8 Armor Integrity Analysis 30 Recoil Reduction 10 Defensive Hacking 10 Item Schematics ----------------- Imp. Weapon Shielding | -8/Materials | Scanalyzed Arm. Treads | -6/Factory | Scanalyzed Weapon Cycler | -5/Factory | Scanalyzed Robot Schematics ------------------ None Fabricated ------------ Imp. Weapon Shielding | x2 | -7/Factory Imp. Weapon Shielding | x2 | -5/Factory Repaired ---------- Aluminum Leg | 2% | -8/Materials Aluminum Leg | 10% | -8/Materials Studied --------- Ion Cannon | -8/Materials | Hacked Com. Wheel | -8/Materials | Hacked Lgt. Deuterium Engine | -8/Materials | Hacked Particle Cannon | -7/Factory | Hacked Arm. Huge Wheel | -6/Factory | Hacked Plasma Cannon | -6/Factory | Hacked Gauss Cannon | -6/Factory | Hacked Imp. Deuterium Engine | -6/Factory | Hacked Assault Cannon | -6/Factory | Hacked Proton Cannon | -5/Factory | Hacked Hvy. Laser | -5/Factory | Hacked Arm. Treads | -5/Factory | Hacked Alien Tech Used ----------------- None Achievements -------------- Construction Begets Destruction Like A Rock Physics Hates This One Trick Challenges ------------ None Game ------ Seed BoreSalvagingInsulator Manual? 0 Play Time 03:06:50 Cumulative 93.0 hours Start 2025.12.19 @ 02:21:22 End 2025.12.21 @ 23:30:35 Sessions 4 Manual Loads 0 Difficulty Rogue Special Mode None Game No. 46 Rogue 46 Adventurer 0 Explorer 0 Win Type - Total 0 Types 0/0/0/0/0/0/0/0/0/0 Lore% 23 Gallery% 39 Achievement% 27 Wizard Run 0 Options --------- Layout 0 ASCII 0 Keyboard 0 Movement Mouse Keybinds 0 Fullscreen 2 Font 18/SmallcapsGlow Map View 76x50 Zoom Use 91% Tactical HUD 1 Map Filters NONE Filters NONE Steam 1 RUN: d719ab79-3009-4d26-9bec-a3f92229d1d7